bitfinex/quotes_SOLUSD_20240909
["timestamp","ask_amount","ask_price","bid_price","bid_amount"]
[1725896893293,45.0,128.67,128.65,7.7729]
[1725896894113,17.60192561,128.68,128.64,19.4337]
[1725896894114,17.60192561,128.68,128.66,7.7723]
[1725896894318,1.35462561,128.68,128.67,9.32607033]
[1725896894508,8.2686,128.73,128.69,19.4263]
[1725896894817,9.62269748,128.73,128.69,27.1964]
[1725896895115,1.85409748,128.73,128.7,7.7698]
[1725896895696,1.85409748,128.73,128.69,19.4263]
[1725896895920,1.85409748,128.73,128.7,7.7698]
[1725896896099,9.62239748,128.73,128.69,27.1967]
[1725896896515,9.62239748,128.73,128.69,19.4263]
[1725896896797,1.85409748,128.73,128.7,7.7699]
[1725896897711,1.85409748,128.73,128.69,27.1967]
[1725896897892,1.85409748,128.73,128.7,7.7697]
[1725896898527,1.85409748,128.73,128.72,7.7688]
[1725896898708,0.5,128.73,128.72,7.7688]
[1725896899097,0.5,128.73,128.71,27.1921]
[1725896899297,0.5,128.73,128.72,9.32248344]
[1725896899609,0.5,128.73,128.72,7.7688]
[1725896902510,0.5,128.73,128.72,9.32196808]
[1725896902706,1.35357598,128.79,128.72,7.7688]
[1725896902908,23.5065,128.84,128.78,19.4129]
[1725896903138,24.85949041,128.84,128.78,19.4129]
[1725896903439,17.09789041,128.84,128.8,7.7633]
[1725896904309,1.35299041,128.84,128.82,19.4055]
[1725896904529,0.8363624,128.86,128.82,19.4055]
[1725896905253,0.8363624,128.86,128.83,1.55232159]
[1725896905521,0.8363624,128.86,128.82,19.4055]
[1725896905725,0.8363624,128.86,128.83,7.7619]
[1725896905900,0.8363624,128.86,128.82,27.1681]
[1725896906101,0.8363624,128.86,128.84,19.4028]
[1725896906329,0.8363624,128.86,128.8,21.643]
[1725896906566,0.8363624,128.86,128.83,19.4043]
[1725896906699,0.8363624,128.86,128.84,7.7614]
[1725896907309,0.8363624,128.86,128.83,19.4043]
[1725896907505,0.8363624,128.86,128.83,27.1659]
[1725896907707,0.8363624,128.86,128.83,19.4043]
[1725896907909,0.8363624,128.86,128.83,27.1664]
[1725896908423,45.8363624,128.86,128.83,27.1664]
[1725896908728,0.8363624,128.86,128.83,27.1664]
[1725896909101,0.8363624,128.86,128.83,19.4043]
[1725896909296,0.8363624,128.86,128.82,7.7622]
[1725896909498,8.5967624,128.86,128.81,7.7632]
[1725896909700,45.0,128.85,128.81,7.7632]
[1725896910122,45.0,128.85,128.82,7.7626]
[1725896910549,0.8363624,128.86,128.82,19.4058]
[1725896910714,0.8363624,128.86,128.83,7.7616]
[1725896911428,0.8363624,128.86,128.84,7.7614]
[1725896911621,0.8363624,128.86,128.85,7.7609]
[1725896912012,0.8363624,128.86,128.84,27.1642]
[1725896912436,0.8363624,128.86,128.85,7.7609]
[1725896914855,0.8363624,128.86,128.85,42.73518532]
[1725896915130,0.8363624,128.86,128.85,27.7609]
[1725896916520,0.8363624,128.86,128.85,7.7609]
[1725896917715,0.8363624,128.86,128.85,64.28653388]
[1725896918135,0.8363624,128.86,128.85,62.73518532]
[1725896919912,0.8363624,128.86,128.85,27.7609]
[1725896920941,0.8363624,128.86,128.85,62.73518532]
[1725896921321,0.8363624,128.86,128.85,107.73518532]
[1725896922011,0.8363624,128.86,128.85,62.73518532]
[1725896922214,0.8363624,128.86,128.85,27.7609]
[1725896922419,1.35201318,128.95,128.92,7.7562]
[1725896922725,1.35201318,128.95,128.85,20.0]
[1725896922912,1.35201318,128.95,128.93,27.1459]
[1725896923112,1.35201318,128.95,128.93,19.3899]
[1725896924143,9.10711318,128.95,128.9,27.1515]
[1725896924442,9.10711318,128.95,128.9,27.1517]
[1725896924443,45.0,128.94,128.9,27.1517]
[1725896924647,45.0,128.94,128.9,19.394]
[1725896924820,7.7557,128.94,128.9,19.394]
[1725896925020,45.0,128.93,128.9,19.394]
[1725896925326,45.0,128.93,128.87,19.3991]
[1725896925529,7.7574,128.91,128.87,27.1583]
[1725896925744,52.7579,128.9,128.87,19.3991]
[1725896925934,52.7579,128.9,128.86,7.7603]
[1725896926247,52.758,128.9,128.86,7.7602]
[1725896926620,45.0,128.9,128.87,9.31150121]
[1725896926831,52.7581,128.9,128.86,7.7602]
[1725896927125,52.7581,128.9,128.84,19.4029]
[1725896927126,7.7586,128.89,128.85,7.7609]
[1725896927429,7.7586,128.89,128.84,19.4029]
[1725896927430,45.0,128.88,128.86,19.4004]
[1725896928441,45.0,128.88,128.87,7.7597]
[1725896929325,29.6882,128.92,128.87,7.7597]
[1725896929517,45.0,128.91,128.88,7.759]
[1725896929726,21.9313,128.92,128.89,1.55163815]
[1725896930025,21.9313,128.92,128.88,19.3971]
[1725896930344,21.9313,128.92,128.9,7.7579]
[1725896930648,15.5899,128.92,128.9,7.7579]
[1725896931345,30.51521318,128.95,128.91,7.7572]
[1725896931843,7.7555,128.94,128.9,27.1521]
[1725896933122,7.7555,128.94,128.9,19.3943]
[1725896933350,45.0,128.93,128.9,27.1521]
[1725896934750,7.7567,128.92,128.88,7.7589]
[1725896934963,45.0,128.91,128.87,19.3983]
[1725896935260,45.0,128.91,128.87,27.1574]
[1725896935439,52.7574,128.91,128.87,27.1574]
[1725896936336,52.7574,128.91,128.87,27.1578]
[1725896936525,45.0,128.91,128.87,27.1578]
[1725896936732,45.0,128.91,128.88,9.31073614]
[1725896936948,45.0,128.91,128.88,7.759]
[1725896937451,52.7573,128.91,128.87,27.1578]
[1725896937959,7.7579,128.9,128.87,19.3983]
[1725896938153,45.0,128.89,128.84,19.4035]
[1725896938354,23.7176,128.89,128.85,7.7607]
[1725896938650,52.7592,128.88,128.84,27.165]
[1725896939541,45.0,128.88,128.86,7.7599]
[1725896939742,45.0,128.88,128.85,7.7607]
[1725896940242,45.0,128.88,128.84,19.4035]
[1725896940554,25.42737002,128.92,128.87,7.7592]
[1725896940726,52.7574,128.91,128.87,7.7592]
[1725896941357,25.42737002,128.92,128.88,1.55169038]
[1725896941533,25.42737002,128.92,128.88,7.7591]
[1725896941730,25.42737002,128.92,128.86,19.3999]
[1725896941731,17.67047002,128.92,128.86,19.3999]
[1725896942043,7.7591,128.88,128.84,7.7613]
[1725896942351,87.06257002,128.92,128.87,7.7595]
[1725896942352,7.7573,128.91,128.87,7.7595]
[1725896942758,45.0,128.9,128.87,7.7595]
[1725896943331,7.7585,128.89,128.85,27.1629]
[1725896943654,45.0,128.88,128.85,27.1629]
[1725896944245,45.0,128.88,128.86,7.7601]
[1725896944557,45.0,128.89,128.86,7.7601]
[1725896945329,37.62868593,128.92,128.87,19.399]
[1725896945555,17.67047002,128.92,128.89,7.7584]
[1725896945758,17.67047002,128.92,128.84,1.55160142]
[1725896945929,7.7575,128.91,128.87,7.7594]
[1725896946241,17.67047002,128.92,128.86,19.4001]
[1725896946242,7.7582,128.9,128.86,27.1602]
[1725896947148,45.0,128.89,128.86,27.1602]
[1725896948163,45.0,128.9,128.86,27.1602]
[1725896948336,45.0,128.9,128.83,27.1661]
[1725896948660,66.2627,128.88,128.8,19.4088]
[1725896948832,66.2627,128.88,128.82,7.7626]
[1725896948833,7.7608,128.86,128.82,7.7626]
[1725896949158,7.7606,128.86,128.81,7.7628]
[1725896949459,45.0,128.85,128.82,7.7626]
[1725896949656,36.22091591,128.88,128.83,1.55231206]
[1725896949960,36.22091591,128.88,128.86,7.7601]
[1725896949961,16.2627,128.88,128.86,7.7601]
[1725896950159,16.2627,128.88,128.84,19.403]
[1725896950160,30.38407002,128.92,128.87,7.7593]
[1725896950372,47.2020345,128.9,128.87,7.7593]
[1725896950666,16.55327002,128.92,128.89,7.7584]
[1725896951261,1.35227002,128.92,128.89,9.30982393]
[1725896951434,1.35227002,128.92,128.9,1.55141766]
[1725896951634,29.0299,128.95,128.9,1.55141766]
[1725896951947,30.38174722,128.95,128.9,1.55141766]
[1725896952139,30.38174722,128.95,128.88,19.397]
[1725896952758,30.38174722,128.95,128.9,7.7578]
[1725896953061,7.7556,128.94,128.89,7.7584]
[1725896953757,52.7563,128.93,128.88,27.156]
[1725896954351,72.71451591,128.93,128.88,27.156]
[1725896954861,72.71451591,128.93,128.89,7.7584]
[1725896955231,19.95821591,128.93,128.9,7.7573]
[1725896955435,27.23804435,128.94,128.9,7.7573]
[1725896955436,30.38184722,128.95,128.9,7.7573]
[1725896955635,30.38184722,128.95,128.91,7.7572]
[1725896955955,7.7556,128.94,128.88,19.397]
[1725896956156,7.7562,128.93,128.88,27.156]
[1725896956465,7.7567,128.92,128.87,7.7591]
[1725896956636,39.34851591,128.94,128.85,19.4013]
[1725896956934,65.0,128.93,128.85,19.4013]
[1725896957132,7.7573,128.91,128.86,7.7597]
[1725896957335,45.0,128.9,128.87,7.7594]
[1725896957557,7.7593,128.88,128.83,7.7615]
[1725896957867,45.0,128.87,128.82,19.406]
[1725896958154,45.0,128.87,128.83,7.762]
[1725896958361,45.0,128.87,128.82,19.406]
[1725896958362,52.7599,128.87,128.82,19.406]
[1725896958656,7.7604,128.86,128.82,27.1685]
[1725896958860,45.0,128.85,128.82,27.1685]
[1725896959266,45.0,128.86,128.83,7.7621]
[1725896959565,45.0,128.86,128.84,7.761]
[1725896959754,7.7604,128.86,128.82,27.1681]
[1725896959962,45.0,128.85,128.82,27.1681]
[1725896960160,45.0,128.85,128.79,19.4104]
[1725896960161,7.7616,128.84,128.79,19.4104]
[1725896960459,19.95821591,128.88,128.79,19.4104]
[1725896960460,45.0,128.83,128.79,19.4104]
[1725896960944,45.0,128.83,128.81,7.7633]
[1725896961261,45.0,128.84,128.81,7.7633]
[1725896961463,45.0,128.84,128.8,7.7637]
[1725896961643,52.7619,128.84,128.79,27.1748]
[1725896961842,52.7619,128.84,128.8,7.7639]
[1725896962559,45.0,128.84,128.81,7.7633]
[1725896963074,45.0,128.85,128.82,7.7626]
[1725896963855,52.7611,128.85,128.81,27.1711]
[1725896964058,52.7611,128.85,128.81,19.4079]
[1725896965676,52.7611,128.85,128.81,27.1712]
[1725896966071,52.7611,128.85,128.81,19.4079]
[1725896966377,45.0,128.85,128.78,19.4121]
[1725896966582,45.0,128.85,128.8,7.7635]
[1725896966583,7.7613,128.85,128.8,7.7635]
[1725896966785,45.0,128.84,128.8,7.7635]
[1725896968068,45.0,128.84,128.79,7.7641]
[1725896968280,52.7617,128.84,128.79,7.7641]
[1725896968479,7.7622,128.83,128.79,7.7641]
[1725896968646,45.0,128.82,128.79,7.7641]
[1725896968852,52.7617,128.84,128.8,7.7638]
[1725896969092,7.7622,128.83,128.79,7.7645]
[1725896969277,45.0,128.82,128.79,7.7645]
[1725896970071,52.7631,128.82,128.78,19.4121]
[1725896970284,7.7635,128.81,128.78,19.4121]
[1725896970453,45.0,128.8,128.78,19.4121]
[1725896970985,52.7636,128.81,128.77,7.7653]
[1725896971288,45.0,128.81,128.75,19.4161]
[1725896971452,7.7642,128.8,128.76,7.7662]
[1725896971654,45.0,128.79,128.77,9.31874929]
[1725896971883,45.0,128.82,128.76,7.7662]
[1725896972062,1.35343133,128.8,128.77,7.7655]
[1725896972577,54.11773133,128.8,128.76,7.7661]
[1725896973184,7.7646,128.79,128.75,27.1829]
[1725896973382,45.0,128.78,128.74,7.7671]
[1725896973676,45.0,128.78,128.72,41.0722]
[1725896973677,45.0,128.78,128.72,21.6514]
[1725896973871,45.0,128.78,128.72,15.5901]
[1725896974073,45.0,128.78,128.73,19.4192]
[1725896974271,45.0,128.78,128.74,7.7671]
[1725896974670,52.7651,128.78,128.74,7.7671]
[1725896974859,52.7651,128.78,128.73,27.1872]
[1725896975371,52.7651,128.78,128.74,7.7674]
[1725896975757,45.0,128.78,128.74,7.7674]
[1725896975979,45.0,128.78,128.75,7.7668]
[1725896976158,45.0,128.78,128.74,7.7673]
[1725896976359,52.7652,128.78,128.74,7.7673]
[1725896976974,7.7668,128.76,128.71,7.769]
[1725896977160,45.0,128.75,128.71,7.769]
[1725896977358,45.0,128.75,128.72,19.4217]
[1725896977573,45.0,128.76,128.73,7.768]
[1725896977961,45.0,128.76,128.72,19.4217]
[1725896977962,52.7665,128.76,128.72,27.1904]
[1725896978157,52.7665,128.76,128.72,27.19]
[1725896978158,52.7668,128.76,128.72,27.19]
[1725896978566,45.0,128.76,128.72,19.4217]
[1725896978766,45.0,128.76,128.73,7.7681]
[1725896979273,45.0,128.76,128.72,19.4217]
[1725896979478,45.0,128.76,128.73,7.768]
[1725896979657,52.7664,128.76,128.72,27.1901]
[1725896980084,45.0,128.76,128.73,7.7679]
[1725896980661,21.9563,128.77,128.74,19.4187]
[1725896980968,15.5797,128.77,128.75,7.7669]
[1725896981175,15.50313133,128.8,128.76,7.7663]
[1725896981365,15.50283133,128.8,128.75,7.7669]
[1725896981686,7.73873133,128.8,128.74,27.186]
[1725896981887,7.7652,128.78,128.74,27.186]
[1725896982068,7.765,128.79,128.75,7.7669]
[1725896982266,7.7651,128.78,128.74,27.1861]
[1725896982469,45.0,128.77,128.75,7.7669]
[1725896982676,45.0,128.78,128.76,7.7663]
[1725896982874,45.0,128.79,128.76,19.4146]
[1725896983080,52.7648,128.79,128.74,7.767]
[1725896983390,45.0,128.79,128.75,19.4166]
[1725896983686,1.35343133,128.8,128.76,1.55313429]
[1725896983903,23.9875,128.81,128.75,19.4166]
[1725896984187,25.34085137,128.81,128.75,19.4166]
[1725896984383,17.57745137,128.81,128.77,19.4138]
[1725896984579,1.35335137,128.81,128.79,7.7641]
[1725896984775,1.35335137,128.81,128.8,7.7639]
[1725896985092,1.35335137,128.81,128.79,27.1754]
[1725896985293,24.3785,128.84,128.8,7.7638]
[1725896985587,1.35336029,128.83,128.8,7.7638]
[1725896985767,1.35336029,128.83,128.81,7.7633]
[1725896986364,1.35336029,128.83,128.82,7.7627]
[1725896986665,14.4201,128.86,128.82,7.7627]
[1725896986666,1.35324345,128.85,128.84,7.7615]
[1725896986889,1.35324345,128.85,128.83,7.7617]
[1725896987183,16.6169,128.87,128.84,7.7615]
[1725896987388,1.35318895,128.88,128.85,7.7608]
[1725896987796,1.35318895,128.88,128.86,7.7603]
[1725896988083,16.6169,128.9,128.86,7.7603]
[1725896988282,25.72781733,128.9,128.86,7.7603]
[1725896989396,25.72781733,128.9,128.86,7.7602]
[1725896990496,45.0,128.89,128.86,7.7602]
[1725896992159,45.0,128.89,128.85,19.4017]
[1725896992386,52.7585,128.89,128.85,27.1624]
[1725896992576,45.0,128.89,128.85,19.4017]
[1725896992768,45.0,128.89,128.85,27.1622]
[1725896993587,45.0,128.89,128.86,7.7602]
[1725896994967,45.0,128.89,128.87,19.3991]
[1725896995287,1.35301733,128.9,128.87,19.3991]
[1725896995464,1.35301733,128.9,128.87,27.1586]
[1725896996688,9.11111733,128.9,128.87,19.3991]
[1725896996887,45.0,128.89,128.87,19.3991]
[1725896997060,46.35301733,128.9,128.87,27.1585]
[1725896997260,1.35301733,128.9,128.89,7.7585]
[1725896998763,1.35301733,128.9,128.88,7.7589]
[1725896999301,1.35301733,128.9,128.89,7.7585]
[1725897000591,1.35301733,128.9,128.88,7.7589]
[1725897001093,1.35301733,128.9,128.87,19.3991]
[1725897001393,9.11111733,128.9,128.86,27.1606]
[1725897001694,45.0,128.89,128.86,19.4008]
[1725897001991,1.35301733,128.9,128.88,7.7591]
[1725897002164,1.35301733,128.9,128.89,7.7585]
[1725897002593,1.35301733,128.9,128.88,19.3973]
[1725897003086,1.35301733,128.9,128.88,27.156]
[1725897003492,1.35301733,128.9,128.89,7.7585]
[1725897003793,1.35301733,128.9,128.88,27.1562]
[1725897005394,1.35301733,128.9,128.89,7.7585]
[1725897006496,1.35301733,128.9,128.88,19.3973]
[1725897007080,1.35301733,128.9,128.88,27.1563]
[1725897007296,1.35301733,128.9,128.89,7.7585]
[1725897007783,1.35301733,128.9,128.87,7.7595]
[1725897007985,7.759,128.89,128.85,27.1616]
[1725897008178,45.0,128.88,128.85,27.1616]
[1725897008688,46.35305983,128.88,128.85,7.7605]
[1725897008887,46.35305983,128.88,128.81,22.7585]
[1725897009081,46.35305983,128.88,128.82,20.0]
[1725897009395,46.35305983,128.88,128.84,19.403]
[1725897009783,46.35305983,128.88,128.85,7.7605]
[1725897009997,46.35305983,128.88,128.86,7.7601]
[1725897010201,45.0,128.88,128.87,7.7597]
[1725897010696,1.35303177,128.9,128.88,7.759]
[1725897010898,1.35303177,128.9,128.86,19.4003]
[1725897011469,7.7591,128.88,128.84,7.7611]
[1725897011879,45.0,128.87,128.84,7.7611]
[1725897012078,45.0,128.88,128.84,7.7611]
[1725897012700,45.0,128.88,128.85,19.402]
[1725897012878,45.0,128.87,128.85,19.402]
[1725897013292,45.0,128.87,128.86,7.7602]
[1725897015295,45.0,128.87,128.85,27.1629]
[1725897015498,45.0,128.88,128.85,27.1629]
[1725897015693,52.7593,128.88,128.85,19.402]
[1725897015904,45.0,128.88,128.85,27.1629]
[1725897016400,45.0,128.88,128.82,19.406]
[1725897016704,7.7601,128.87,128.83,7.7618]
[1725897017004,45.0,128.86,128.84,7.7611]
[1725897017504,45.0,128.87,128.84,7.7611]
[1725897017701,52.7598,128.87,128.83,7.7619]
[1725897017890,45.0,128.87,128.84,7.7612]
[1725897018510,52.7597,128.87,128.83,7.7619]
[1725897018814,52.7597,128.87,128.82,19.406]
[1725897018815,7.761,128.85,128.82,19.406]
[1725897018981,45.0,128.84,128.82,19.406]
[1725897019393,45.0,128.84,128.82,27.1687]
[1725897019593,45.0,128.85,128.82,27.1687]
[1725897020218,45.0,128.86,128.82,27.1687]
[1725897020592,52.7604,128.86,128.82,27.1687]
[1725897021620,52.7603,128.86,128.82,27.1684]
[1725897022296,45.0,128.86,128.83,7.762]
[1725897022940,52.7604,128.86,128.82,27.1685]
[1725897023093,45.0,128.86,128.79,19.41]
[1725897023297,7.7627,128.82,128.79,19.41]
[1725897023517,45.0,128.81,128.78,7.7647]
[1725897023708,52.7633,128.81,128.77,7.7655]
[1725897024221,7.7639,128.8,128.76,27.181]
[1725897024402,45.0,128.79,128.76,27.181]
[1725897024603,45.0,128.79,128.77,7.7655]
[1725897025124,7.7647,128.79,128.76,19.4148]
[1725897025307,45.0,128.78,128.76,19.4148]
[1725897025825,45.0,128.78,128.76,27.181]
[1725897026118,21.5668,128.84,128.74,34.97428532]
[1725897026296,21.5668,128.84,128.75,16.4741]
[1725897026297,15.078,128.84,128.75,16.4741]
[1725897026492,15.078,128.84,128.76,34.97428532]
[1725897027131,15.078,128.84,128.82,7.7627]
[1725897027328,56.1792,128.87,128.83,7.7621]
[1725897027329,30.2844,128.87,128.83,7.7621]
[1725897027633,30.2844,128.87,128.82,19.4064]
[1725897028224,22.5243,128.87,128.78,41.41228532]
[1725897028408,7.7591,128.89,128.85,7.7608]
[1725897028904,7.7591,128.89,128.84,27.1648]
[1725897029722,37.23037477,128.9,128.86,19.3998]
[1725897030027,17.26853177,128.9,128.86,19.3998]
[1725897030209,17.26853177,128.9,128.87,7.7592]
[1725897030416,1.35303177,128.9,128.88,7.7588]
[1725897030727,1.35303177,128.9,128.89,7.7585]
[1725897030933,1.35303177,128.9,128.87,7.7592]
[1725897031401,1.35303177,128.9,128.88,7.759]
[1725897031797,1.35303177,128.9,128.89,7.7585]
[1725897032002,1.35303177,128.9,128.88,27.156]
[1725897034240,1.35303177,128.9,128.85,19.4014]
[1725897034440,1.35303177,128.9,128.87,7.7597]
[1725897035026,1.35303177,128.9,128.88,7.759]
[1725897036344,1.35303177,128.9,128.87,27.1579]
[1725897037529,1.35303177,128.9,128.87,19.3983]
[1725897038336,1.35303177,128.9,128.89,7.7585]
[1725897038535,1.35303177,128.9,128.87,19.3983]
[1725897038735,1.35303177,128.9,128.88,7.7589]
[1725897039730,1.35303177,128.9,128.87,27.1578]
[1725897042154,1.35303177,128.9,128.85,7.7603]
[1725897042155,9.11113177,128.9,128.85,7.7603]
[1725897042339,45.0,128.89,128.85,7.7603]
[1725897043058,45.0,128.89,128.86,7.7601]
[1725897043229,45.0,128.89,128.87,7.7597]
[1725897043557,46.35303177,128.9,128.87,7.7597]
[1725897043929,20.0,128.89,128.87,7.7597]
[1725897044127,45.0,128.88,128.86,27.1607]
[1725897044950,45.0,128.88,128.85,7.7607]
[1725897045356,45.0,128.88,128.85,27.163]
[1725897045655,52.7591,128.88,128.85,19.4023]
[1725897045833,46.35257648,128.88,128.86,7.7601]
[1725897046040,46.35257648,128.88,128.85,19.4023]
[1725897046041,46.35257648,128.88,128.87,7.7597]
[1725897046230,45.0,128.88,128.87,7.7597]
[1725897048045,1.35224531,128.91,128.84,34.97428532]
[1725897048365,50.0,128.96,128.91,7.7573]
[1725897048366,20.0,128.92,128.91,7.7573]
[1725897048570,45.37975161,128.96,128.91,7.7573]
[1725897048943,25.42235847,128.96,128.91,7.7573]
[1725897049347,1.35175847,128.96,128.92,1.55135512]
[1725897049555,1.35175847,128.96,128.94,7.7554]
[1725897050257,1.35175847,128.96,128.95,7.7549]
[1725897050469,16.8752624,128.99,128.95,7.7549]
[1725897050836,18.22694825,128.99,128.95,7.7549]
[1725897051035,18.22694825,128.99,128.93,19.3899]
[1725897051036,18.22694825,128.99,128.93,27.1455]
[1725897051367,68.22694825,128.99,128.93,19.3899]
[1725897051657,7.7538,128.97,128.93,19.3899]
[1725897051862,45.0,128.96,128.93,19.3899]
[1725897054151,52.7544,128.96,128.92,7.7565]
[1725897054337,20.0,128.95,128.92,7.7565]
[1725897054539,45.0,128.94,128.92,7.7565]
[1725897057255,45.0,128.94,128.93,7.7561]
[1725897060367,7.7531,128.98,128.94,7.7554]
[1725897060670,65.0,128.97,128.94,7.7554]
[1725897061663,65.0,128.97,128.92,19.3908]
[1725897062264,7.7547,128.96,128.92,27.1473]
[1725897062454,45.0,128.95,128.92,27.1473]
[1725897062655,72.7539,128.97,128.93,7.756]
[1725897062864,45.0,128.97,128.94,7.7553]
[1725897063048,45.0,128.98,128.94,7.7553]
[1725897063757,52.7533,128.98,128.94,7.7553]
[1725897063957,45.0,128.98,128.95,7.7549]
[1725897064146,20.0,128.97,128.95,7.7549]
[1725897064353,45.0,128.96,128.91,19.3921]
[1725897064662,45.0,128.96,128.93,7.7561]
[1725897065268,45.0,128.96,128.93,27.1463]
[1725897065472,45.0,128.96,128.93,19.3902]
[1725897065673,45.0,128.96,128.94,7.7553]
[1725897065857,45.0,128.96,128.93,27.1462]
[1725897066259,45.0,128.96,128.94,7.7554]
[1725897068077,45.0,128.96,128.93,27.1461]
[1725897068270,45.0,128.96,128.94,7.7552]
[1725897069073,45.0,128.96,128.95,7.7549]
[1725897069280,18.22694825,128.99,128.96,7.7542]
[1725897069476,18.22694825,128.99,128.97,7.7536]
[1725897069778,2.18804825,128.99,128.97,7.7536]
[1725897069969,0.8363624,128.99,128.97,7.7536]
[1725897070173,0.8363624,128.99,128.95,19.3872]
[1725897070174,8.5889624,128.99,128.95,27.1419]
[1725897070479,2.18786295,128.99,128.96,7.7543]
[1725897070676,54.94036295,128.99,128.95,27.1419]
[1725897070859,20.0,128.98,128.95,27.1419]
[1725897071060,52.7537,128.97,128.92,19.3908]
[1725897071258,7.7549,128.95,128.92,19.3908]
[1725897071579,65.0,128.94,128.9,7.7577]
[1725897071776,65.0,128.94,128.89,19.395]
[1725897071777,65.0,128.94,128.91,7.7571]
[1725897072155,72.7556,128.94,128.9,7.7575]
[1725897072668,65.0,128.94,128.9,1.55146335]
[1725897072867,65.0,128.94,128.92,7.7567]
[1725897073078,65.0,128.94,128.91,27.1502]
[1725897074273,7.7566,128.93,128.88,27.1559]
[1725897074474,65.0,128.92,128.89,7.7583]
[1725897074865,45.0,128.92,128.91,7.7573]
[1725897075070,19.95398666,128.95,128.88,41.23978532]
[1725897075288,7.7535,128.98,128.92,19.3906]
[1725897075583,16.44836295,128.99,128.94,7.755]
[1725897076482,45.0,128.98,128.95,7.7549]
[1725897076984,16.44836295,128.99,128.96,7.7542]
[1725897076985,22.13933813,128.99,128.96,7.7542]
[1725897077170,22.13933813,128.99,128.95,7.7547]
[1725897077370,2.18786295,128.99,128.95,7.7547]
[1725897078185,22.18786295,128.99,128.95,7.7547]
[1725897078393,45.0,128.98,128.95,7.7547]
[1725897078885,45.0,128.98,128.96,7.7542]
[1725897079475,0.8363624,128.99,128.98,7.7531]
[1725897083481,0.8363624,128.99,128.96,35.3843]
[1725897083482,0.8363624,128.99,128.96,19.3851]
[1725897083682,0.8363624,128.99,128.98,7.7531]
[1725897093771,0.8363624,128.99,128.97,7.7535]
[1725897095919,8.5893624,128.99,128.93,34.564]
[1725897096099,65.0,128.98,128.93,19.389]
[1725897096413,20.0,128.98,128.93,19.389]
[1725897096710,45.0,128.97,128.95,27.1417]
[1725897098020,0.8363624,128.99,128.96,7.7543]
[1725897098215,73.5888624,128.99,128.95,27.1417]
[1725897099310,65.8363624,128.99,128.97,7.7536]
[1725897099714,65.8363624,128.99,128.96,7.7541]
[1725897101111,65.8363624,128.99,128.95,19.3872]
[1725897101329,65.8363624,128.99,128.92,19.3908]
[1725897101330,7.7549,128.95,128.92,19.3908]
[1725897101496,45.0,128.94,128.92,19.3908]
[1725897101898,52.7555,128.94,128.91,7.7572]
[1725897102187,45.0,128.94,128.91,7.7572]
[1725897102504,45.0,128.94,128.89,19.395]
[1725897102505,20.0,128.93,128.89,19.395]
[1725897102710,45.0,128.92,128.91,7.7573]
[1725897103492,45.0,128.92,128.89,19.395]
[1725897103715,45.0,128.92,128.9,7.7575]
[1725897104510,45.0,128.92,128.89,19.395]
[1725897104803,45.0,128.92,128.89,27.1533]
[1725897105120,45.0,128.92,128.89,19.395]
[1725897105294,52.7567,128.92,128.89,19.395]
[1725897105619,7.7574,128.91,128.87,7.7597]
[1725897105789,45.0,128.9,128.88,19.3975]
[1725897105992,45.0,128.92,128.89,7.7585]
[1725897106188,45.0,128.92,128.88,19.3975]
[1725897106418,45.0,128.92,128.9,7.7579]